bitfinex/quotes_BTCUSD_20250812
["timestamp","ask_amount","ask_price","bid_price","bid_amount"]
[1754997049285,1.61718323,118480.0,118470.0,1e-08]
[1754997049549,1.61718323,118480.0,118440.0,0.0002]
[1754997049550,0.01744902,118450.0,118440.0,0.00322]
[1754997049756,0.39781988,118450.0,118440.0,0.00525901]
[1754997050177,0.42317788,118450.0,118440.0,0.00525901]
[1754997050393,0.21165463,118450.0,118440.0,0.00525901]
[1754997050592,0.34057463,118450.0,118440.0,0.00525901]
[1754997050792,0.39332374,118450.0,118440.0,0.00525901]
[1754997051110,0.39332374,118450.0,118440.0,0.00625901]
[1754997051417,0.88877332,118450.0,118440.0,0.00124901]
[1754997051975,0.41470543,118450.0,118440.0,0.00423901]
[1754997052181,0.88877332,118450.0,118440.0,0.00423901]
[1754997052502,0.90681817,118450.0,118440.0,0.00223901]
[1754997052706,0.90881817,118450.0,118440.0,0.00324901]
[1754997052879,0.90781817,118450.0,118440.0,0.00024901]
[1754997053085,0.88977332,118450.0,118440.0,0.00024901]
[1754997053325,0.88977332,118450.0,118440.0,0.00323901]
[1754997053524,0.90780518,118450.0,118440.0,0.00323901]
[1754997055439,0.90780518,118450.0,118440.0,0.00124901]
[1754997055892,0.99052843,118450.0,118440.0,0.00124901]
[1754997057346,0.49839885,118450.0,118440.0,0.00124901]
[1754997057554,0.98724843,118450.0,118440.0,0.00625901]
[1754997057758,0.85828843,118450.0,118440.0,0.00323901]
[1754997057955,0.4124756,118450.0,118440.0,0.00323901]
[1754997058131,0.90658518,118450.0,118440.0,0.00323901]
[1754997058344,0.90969518,118450.0,118440.0,0.00124901]
[1754997058610,0.99241843,118450.0,118440.0,0.00124901]
[1754997058982,0.50028885,118450.0,118440.0,0.00124901]
[1754997059142,0.37124885,118450.0,118440.0,0.00124901]
[1754997059344,0.86337843,118450.0,118440.0,0.00124901]
[1754997059658,0.81062932,118450.0,118440.0,0.00124901]
[1754997059869,0.44773974,118450.0,118440.0,0.00124901]
[1754997060044,0.93986932,118450.0,118440.0,0.00124901]
[1754997060483,0.44773974,118450.0,118440.0,0.00124901]
[1754997060695,0.93986932,118450.0,118440.0,0.00124901]
[1754997060899,0.53022417,118450.0,118440.0,0.00124901]
[1754997061103,1.02235375,118450.0,118440.0,0.00124901]
[1754997061323,0.89311375,118450.0,118440.0,0.00128901]
[1754997061535,0.53022417,118450.0,118440.0,0.00128901]
[1754997061799,1.02235375,118450.0,118440.0,0.00128901]
[1754997064120,0.53022417,118450.0,118440.0,0.00128901]
[1754997064579,1.02235375,118450.0,118440.0,0.00128901]
[1754997066608,0.53022417,118450.0,118440.0,0.00128901]
[1754997066851,1.02235375,118450.0,118440.0,0.00128901]
[1754997069228,1.02821643,118450.0,118440.0,0.00128901]
[1754997070301,0.55285964,118450.0,118440.0,0.00128901]
[1754997070509,0.55285964,118450.0,118430.0,0.0002]
[1754997070510,0.16886187,118440.0,118430.0,0.0002]
[1754997070725,1.4815684,118440.0,118430.0,0.0002]
[1754997070976,0.54568517,118440.0,118430.0,0.0002]
[1754997071180,1.03781475,118440.0,118430.0,0.0002]
[1754997071642,1.04081475,118440.0,118430.0,0.0002]
[1754997072699,1.01829054,118440.0,118430.0,0.0002]
[1754997073111,1.57338525,118440.0,118430.0,1e-08]
[1754997073325,1.58369841,118440.0,118430.0,1e-08]
[1754997073530,0.16889039,118420.0,118410.0,0.0002]
[1754997073742,0.89890366,118420.0,118410.0,0.0002]
[1754997073953,0.90193366,118420.0,118410.0,0.0002]
[1754997074165,0.40980408,118420.0,118410.0,0.0002]
[1754997074392,0.45489593,118420.0,118410.0,0.0002]
[1754997074601,0.36096733,118420.0,118410.0,0.0002]
[1754997074825,0.49464733,118420.0,118410.0,0.0002]
[1754997075066,0.49161733,118420.0,118410.0,0.00218]
[1754997075280,0.53670918,118420.0,118410.0,0.00516]
[1754997075526,0.35787733,118420.0,118410.0,0.00516]
[1754997075751,0.35787733,118420.0,118410.0,0.49728958]
[1754997075752,0.41687162,118420.0,118410.0,0.49728958]
[1754997075964,0.38135007,118420.0,118410.0,0.00516]
[1754997076176,0.87555571,118420.0,118410.0,0.0002]
[1754997076403,0.99137019,118420.0,118410.0,0.0002]
[1754997076616,0.96880044,118420.0,118410.0,0.0002]
[1754997076831,0.18635367,118410.0,118400.0,0.0002]
[1754997077067,0.86536298,118410.0,118400.0,0.0002]
[1754997077287,0.85100441,118410.0,118400.0,1e-08]
[1754997077502,0.86660071,118410.0,118400.0,1e-08]
[1754997077717,0.38303769,118410.0,118400.0,1e-08]
[1754997077937,0.9576517,118410.0,118400.0,1e-08]
[1754997078152,0.9576517,118410.0,118400.0,0.00048857]
[1754997078357,0.18636793,118400.0,118390.0,0.0002]
[1754997078622,0.47039865,118400.0,118390.0,0.00528358]
[1754997078824,0.47245865,118400.0,118390.0,0.00032358]
[1754997079065,0.55500584,118400.0,118390.0,0.00032358]
[1754997079293,0.52798509,118400.0,118390.0,0.00528358]
[1754997079491,0.52798509,118400.0,118390.0,0.00628358]
[1754997079693,1.02011467,118400.0,118390.0,0.00628358]
[1754997079917,0.98996593,118400.0,118390.0,0.00628358]
[1754997080550,0.99096593,118400.0,118390.0,0.00330358]
[1754997080756,0.60004735,118400.0,118390.0,0.00132358]
[1754997080960,1.09217693,118400.0,118390.0,0.00132358]
[1754997081387,1.09217347,118400.0,118390.0,0.00132358]
[1754997081599,1.07647649,118400.0,118390.0,0.00132358]
[1754997082018,1.52247649,118400.0,118390.0,0.00132358]
[1754997083083,1.50502747,118400.0,118390.0,0.00132358]
[1754997083287,1.52147649,118400.0,118390.0,0.00132358]
[1754997083499,2.02929048,118400.0,118390.0,0.00132358]
[1754997083738,0.1863822,118390.0,118380.0,0.0002845]
[1754997083950,1.08068709,118390.0,118380.0,0.0002845]
[1754997084380,1.05057533,118390.0,118380.0,0.0002845]
[1754997084801,0.57412325,118390.0,118380.0,0.0002845]
[1754997085247,1.06625283,118390.0,118380.0,0.0002845]
[1754997085472,1.06825283,118390.0,118380.0,0.0002845]
[1754997085895,1.06768961,118390.0,118380.0,0.0002845]
[1754997086384,0.18639647,118380.0,118370.0,0.0002]
[1754997086594,0.94798893,118380.0,118370.0,0.0002]
[1754997086794,0.9179096,118380.0,118370.0,0.0002]
[1754997086995,0.44144604,118380.0,118370.0,0.0002]
[1754997087634,0.93357562,118380.0,118370.0,0.0002]
[1754997087841,0.9199096,118380.0,118370.0,0.0002]
[1754997088042,0.44542498,118380.0,118370.0,0.0012]
[1754997088882,0.45473243,118380.0,118370.0,0.00616]
[1754997089094,0.54584479,118380.0,118370.0,0.00616]
[1754997089503,0.40878527,118380.0,118370.0,0.00616]
[1754997089709,0.41022374,118380.0,118370.0,0.00616]
[1754997089920,0.41022374,118380.0,118370.0,0.0737704]
[1754997090139,0.32773931,118380.0,118370.0,0.56589998]
[1754997090343,0.02203186,118380.0,118370.0,0.73486171]
[1754997090545,0.139,118380.0,118370.0,0.75953171]
[1754997090800,0.002,118380.0,118370.0,0.75953171]
[1754997091023,0.16263618,118400.0,118390.0,0.16893318]
[1754997091248,0.16263618,118400.0,118390.0,0.73363316]
[1754997091719,0.00014718,118400.0,118390.0,0.24150358]
[1754997091924,0.00014718,118400.0,118390.0,0.75830316]
[1754997092171,0.00014718,118400.0,118390.0,0.84102641]
[1754997092696,0.00014718,118400.0,118390.0,0.83045368]
[1754997092945,0.00014718,118400.0,118390.0,0.96789368]
[1754997094212,0.00114718,118400.0,118390.0,0.28728643]
[1754997094726,0.00114718,118400.0,118390.0,0.74317328]
[1754997094947,0.00114718,118400.0,118390.0,0.74617328]
[1754997094948,0.00214718,118400.0,118390.0,0.74617328]
[1754997096007,0.17106609,118400.0,118390.0,0.74617328]
[1754997096214,0.17106609,118400.0,118390.0,0.01296]
[1754997096621,0.00214718,118400.0,118390.0,0.18189318]
[1754997096829,0.17106609,118400.0,118390.0,0.18189318]
[1754997097025,0.17106609,118400.0,118390.0,0.01296]
[1754997097226,0.21881117,118400.0,118390.0,0.01296]
[1754997097431,0.17201609,118400.0,118390.0,0.00698]
[1754997097638,0.17101609,118400.0,118390.0,0.001]
[1754997097869,0.17400609,118400.0,118390.0,0.003]
[1754997098090,0.17500609,118400.0,118390.0,0.003]
[1754997098295,0.38081304,118400.0,118390.0,0.003]
[1754997098702,0.87981891,118400.0,118390.0,0.003]
[1754997098911,0.89321278,118400.0,118390.0,0.003]
[1754997099123,0.89321288,118400.0,118390.0,0.003]
[1754997099318,0.89321288,118400.0,118390.0,1e-08]
[1754997099543,0.16894745,118380.0,118370.0,0.0002]
[1754997099747,0.38251915,118380.0,118370.0,0.0002]
[1754997100049,0.38550915,118380.0,118370.0,0.0002]
[1754997100856,0.39138949,118380.0,118370.0,0.0012]
[1754997101080,0.39238949,118380.0,118370.0,0.0032]
[1754997102093,0.38650915,118380.0,118370.0,0.0032]
[1754997102297,0.35271986,118380.0,118370.0,0.0032]
[1754997104459,0.33014504,118380.0,118370.0,0.0032]
[1754997105051,0.32520504,118380.0,118370.0,0.00518]
[1754997105463,0.32715504,118380.0,118370.0,0.00518]
[1754997105667,0.37932157,118380.0,118370.0,0.00518]
[1754997106028,0.37737157,118380.0,118370.0,0.00518]
[1754997106476,0.35931398,118380.0,118370.0,0.00518]
[1754997106865,0.35931398,118380.0,118370.0,0.00816]
[1754997108218,0.36126398,118380.0,118370.0,0.00816]
[1754997108421,0.36126398,118380.0,118370.0,0.00518]
[1754997108822,0.35931398,118380.0,118370.0,0.00518]
[1754997109463,0.36126398,118380.0,118370.0,0.00518]
[1754997110902,0.36425398,118380.0,118370.0,0.00518]
[1754997111077,0.36425398,118380.0,118370.0,0.0032]
[1754997112094,0.41425398,118380.0,118370.0,0.0032]
[1754997117156,0.36425398,118380.0,118370.0,0.0032]
[1754997118328,0.84581083,118380.0,118370.0,0.0032]
[1754997118734,0.36425398,118380.0,118370.0,0.0032]
[1754997118951,0.90799252,118380.0,118370.0,0.0032]
[1754997120591,0.41425398,118380.0,118370.0,0.0032]
[1754997120959,0.90799252,118380.0,118370.0,0.0032]
[1754997122037,0.41425398,118380.0,118370.0,0.0032]
[1754997122244,0.90799252,118380.0,118370.0,0.0032]
[1754997123915,0.41425398,118380.0,118370.0,0.0032]
[1754997124105,0.90799252,118380.0,118370.0,0.0032]
[1754997124525,0.90699252,118380.0,118370.0,0.0012]
[1754997124683,0.98971577,118380.0,118370.0,0.0012]
[1754997124898,1.01016479,118380.0,118370.0,0.0022]
[1754997125419,1.01016479,118380.0,118370.0,0.0012]
[1754997125622,0.51642625,118380.0,118370.0,0.0012]
[1754997126005,1.01216479,118380.0,118370.0,0.0012]
[1754997126378,1.03028603,118380.0,118370.0,0.0012]
[1754997127027,0.53654749,118380.0,118370.0,0.0012]
[1754997127235,1.03028603,118380.0,118370.0,0.0012]
[1754997128074,1.03863272,118380.0,118370.0,0.0012]
[1754997128328,1.03615663,118380.0,118370.0,0.0012]
[1754997128538,1.04206343,118380.0,118370.0,0.0012]
[1754997130522,1.02206343,118380.0,118370.0,0.0012]
[1754997130729,1.01615663,118380.0,118370.0,0.0012]
[1754997131113,0.52241809,118380.0,118370.0,0.0012]
[1754997131336,0.99803539,118380.0,118370.0,0.0012]
[1754997133890,0.50429685,118380.0,118370.0,0.0012]
[1754997134121,0.99803539,118380.0,118370.0,0.0012]
[1754997134606,0.94803539,118380.0,118370.0,0.0012]
[1754997136499,0.99803539,118380.0,118370.0,0.0012]
[1754997137496,0.96618512,118380.0,118370.0,0.0012]
[1754997137861,0.97209344,118380.0,118370.0,0.0012]
[1754997138082,0.98784927,118380.0,118370.0,0.0012]
[1754997138287,0.97209344,118380.0,118370.0,0.0012]
[1754997140626,0.96618512,118380.0,118370.0,0.0012]
[1754997140821,0.9720915,118380.0,118370.0,0.0012]
[1754997141455,0.9754745,118380.0,118370.0,0.0012]
[1754997143798,0.9754734,118380.0,118370.0,0.0012]
[1754997146104,0.68014929,118370.0,118360.0,0.00027]
[1754997146305,1.01181144,118370.0,118360.0,0.00027]
[1754997147641,1.01281144,118370.0,118360.0,0.00127]
[1754997147850,1.01381144,118370.0,118360.0,0.00127]
[1754997148058,1.01281144,118370.0,118360.0,0.00027]
[1754997148263,0.5180729,118370.0,118360.0,0.00027]
[1754997148438,1.01181144,118370.0,118360.0,0.00027]
[1754997148674,1.01381144,118370.0,118360.0,0.00027]
[1754997148881,0.5230729,118370.0,118360.0,0.00127]
[1754997149087,1.01681144,118370.0,118360.0,0.00127]
[1754997149614,1.01681069,118370.0,118360.0,0.00127]
[1754997150630,0.52307215,118370.0,118360.0,0.00127]
[1754997151100,1.01681069,118370.0,118360.0,0.00127]
[1754997151251,0.52307215,118370.0,118360.0,0.00127]
[1754997151459,1.01681069,118370.0,118360.0,0.00127]
[1754997152071,0.52307215,118370.0,118360.0,0.00127]
[1754997152233,1.01681069,118370.0,118360.0,0.00127]
[1754997152634,1.01673881,118370.0,118360.0,0.00127]
[1754997153420,1.01083466,118370.0,118360.0,0.00127]
[1754997154039,1.01673906,118370.0,118360.0,0.00127]
[1754997154452,1.04268493,118370.0,118360.0,0.00127]
[1754997154747,0.99268493,118370.0,118360.0,0.00127]
[1754997155158,1.01082289,118370.0,118360.0,0.00127]
[1754997155371,0.99268493,118370.0,118360.0,0.00127]
[1754997156579,1.01806293,118370.0,118360.0,0.00127]
[1754997158980,1.04306293,118370.0,118360.0,1e-08]
[1754997159205,0.54932439,118370.0,118360.0,1e-08]
[1754997159365,1.09306293,118370.0,118360.0,1e-08]
[1754997160377,0.59932439,118370.0,118360.0,1e-08]
[1754997160571,1.09306293,118370.0,118360.0,1e-08]
[1754997160773,0.59932439,118370.0,118360.0,1e-08]
[1754997161235,1.09306293,118370.0,118360.0,1e-08]
[1754997161822,1.5865776,118370.0,118360.0,1e-08]
[1754997162062,1.61062695,118370.0,118360.0,1e-08]
[1754997162737,1.62637689,118370.0,118360.0,1e-08]
[1754997163539,1.67704689,118370.0,118360.0,1e-08]
[1754997163981,1.18330835,118370.0,118360.0,1e-08]
[1754997164399,0.68956981,118370.0,118360.0,1e-08]
[1754997164606,1.18330835,118370.0,118360.0,1e-08]
[1754997165562,0.68956981,118370.0,118360.0,1e-08]
[1754997165967,1.18330835,118370.0,118360.0,1e-08]
[1754997166398,1.18331661,118370.0,118360.0,1e-08]
[1754997167626,1.18332943,118370.0,118360.0,1e-08]
[1754997168435,0.68959089,118370.0,118360.0,1e-08]
[1754997168636,1.18332943,118370.0,118360.0,1e-08]
[1754997169181,1.18346943,118370.0,118360.0,1e-08]
[1754997169601,0.68973089,118370.0,118360.0,1e-08]
[1754997169844,1.18346943,118370.0,118360.0,1e-08]
[1754997170511,0.68973089,118370.0,118360.0,1e-08]
[1754997170720,1.18346943,118370.0,118360.0,1e-08]
[1754997171182,0.68973089,118370.0,118360.0,1e-08]
[1754997171352,1.18346943,118370.0,118360.0,1e-08]
[1754997171612,1.15846943,118370.0,118360.0,1e-08]
[1754997173413,1.15847377,118370.0,118360.0,1e-08]
[1754997174290,1.18347377,118370.0,118360.0,1e-08]
[1754997175266,1.21405044,118370.0,118360.0,1e-08]
[1754997175429,1.70778898,118370.0,118360.0,1e-08]
[1754997176204,1.685094,118370.0,118360.0,1e-08]
[1754997176406,1.65554358,118370.0,118360.0,1e-08]
[1754997176603,1.19136524,118370.0,118360.0,1e-08]
[1754997177066,1.16771708,118370.0,118360.0,1e-08]
[1754997177269,1.19136531,118370.0,118360.0,1e-08]
[1754997177726,1.21406029,118370.0,118360.0,1e-08]
[1754997177921,0.1864393,118350.0,118340.0,0.0350304]
[1754997178144,0.91862502,118350.0,118340.0,0.03600623]
[1754997178777,0.94400502,118350.0,118340.0,0.01693171]
[1754997178985,0.94720502,118350.0,118340.0,1e-08]
[1754997179196,0.94728785,118350.0,118340.0,1e-08]
[1754997179366,0.94728785,118350.0,118340.0,0.00200001]
[1754997179567,0.45454931,118350.0,118340.0,0.00200001]
[1754997179778,0.94828785,118350.0,118340.0,0.00200001]
[1754997179983,0.45668931,118350.0,118340.0,0.00300001]
[1754997180240,0.95042785,118350.0,118340.0,0.00300001]
[1754997180730,0.94508785,118350.0,118340.0,0.00300001]
[1754997181303,0.94722785,118350.0,118340.0,0.00300001]
[1754997181508,0.16900456,118340.0,118330.0,0.1]
[1754997181707,0.88230753,118340.0,118330.0,0.10203]
[1754997182106,0.90768853,118340.0,118330.0,0.10203]
[1754997183581,0.95835853,118340.0,118330.0,0.10203]
[1754997183782,0.90768853,118340.0,118330.0,0.10203]
[1754997183997,0.41394999,118340.0,118330.0,0.07658229]
[1754997184203,0.90768853,118340.0,118330.0,0.03972845]
[1754997184633,0.27686999,118340.0,118330.0,0.04126845]
[1754997184856,0.41578999,118340.0,118330.0,0.04226845]
[1754997187331,0.41578999,118340.0,118330.0,0.04072845]
[1754997187761,0.41578999,118340.0,118330.0,0.01709337]
[1754997189883,0.33330556,118340.0,118330.0,0.01709337]
[1754997190119,0.33294556,118340.0,118330.0,0.01709337]
[1754997190762,0.33608556,118340.0,118330.0,0.01709337]
[1754997191200,0.33608556,118340.0,118330.0,0.01073159]
[1754997191401,0.8298241,118340.0,118330.0,0.01077159]
[1754997191641,0.8298241,118340.0,118320.0,1e-08]
[1754997191642,0.16901884,118330.0,118320.0,1e-08]
[1754997191848,0.30553884,118330.0,118320.0,1e-08]
[1754997193017,0.30653884,118330.0,118320.0,1e-08]
[1754997198054,0.01240414,118320.0,118310.0,0.17765338]
[1754997198255,0.01240414,118320.0,118310.0,1.27202371]
[1754997198611,0.01240414,118320.0,118310.0,0.91444517]
[1754997199498,0.01440414,118320.0,118310.0,0.88999746]
[1754997199702,0.01440414,118320.0,118310.0,0.89862853]
[1754997199906,0.01440414,118320.0,118310.0,0.40688999]
[1754997199907,0.01540414,118320.0,118310.0,0.40688999]
[1754997200133,0.01540414,118320.0,118310.0,0.90062853]
[1754997201037,0.01540414,118320.0,118310.0,0.40688999]
[1754997201251,0.01540414,118320.0,118310.0,0.90062853]
[1754997203197,0.003,118320.0,118310.0,0.90062853]
[1754997204355,0.17203313,118320.0,118310.0,0.58809286]
[1754997204560,0.17203313,118320.0,118310.0,0.75714027]
[1754997204777,0.17203313,118320.0,118310.0,0.69821798]
[1754997205880,0.17203313,118320.0,118310.0,0.20447944]
[1754997206300,0.17203313,118320.0,118310.0,0.67441702]
[1754997207176,0.17203313,118320.0,118310.0,0.01163107]
[1754997207381,0.17203313,118320.0,118310.0,0.50536961]
[1754997207593,0.17203313,118320.0,118310.0,0.18067848]
[1754997207806,0.17203313,118320.0,118310.0,0.67441702]
[1754997208507,0.17203313,118320.0,118310.0,0.50536961]
[1754997208720,0.17203313,118320.0,118310.0,0.01163107]
[1754997208923,0.17203313,118320.0,118310.0,0.50536961]
[1754997209359,0.17719313,118320.0,118310.0,0.01163107]
[1754997209587,0.17719313,118320.0,118310.0,0.50536961]
[1754997209799,0.17517313,118320.0,118310.0,0.50536961]
[1754997210006,0.17719313,118320.0,118310.0,0.50536961]
[1754997210939,0.17719313,118320.0,118310.0,0.38214879]
[1754997211500,0.17719313,118320.0,118310.0,0.37351772]
[1754997211678,0.17719313,118320.0,118310.0,0.003]
[1754997211882,0.17719313,118320.0,118310.0,0.37351772]
[1754997212298,0.17719313,118320.0,118310.0,0.38197614]
[1754997213110,0.17719313,118320.0,118310.0,0.01145842]
[1754997213322,0.17719313,118320.0,118310.0,0.37351772]
[1754997213527,0.17719313,118320.0,118310.0,0.003]
[1754997213699,0.17719313,118320.0,118310.0,0.37351772]
[1754997213901,0.17719313,118320.0,118310.0,0.003]
[1754997214750,0.17719313,118320.0,118310.0,0.37351772]
[1754997215161,0.20257613,118320.0,118310.0,0.37351772]
[1754997215371,0.23573391,118320.0,118310.0,0.003]
[1754997215550,0.23573391,118320.0,118310.0,0.37351772]
[1754997215551,0.20257613,118320.0,118310.0,0.37351772]
[1754997216345,0.20257613,118320.0,118310.0,0.003]
[1754997216745,0.33845613,118320.0,118310.0,0.37351772]
[1754997220644,0.20257613,118320.0,118310.0,0.37351772]
[1754997220856,0.33833613,118320.0,118310.0,0.37351772]
[1754997224147,0.20257613,118320.0,118310.0,0.37351772]
[1754997224452,0.33801613,118320.0,118310.0,0.37351772]
[1754997224918,0.33801613,118320.0,118310.0,0.003]
[1754997225054,0.33801613,118320.0,118310.0,0.37351772]
[1754997225260,0.33801613,118320.0,118310.0,0.003]
[1754997225655,0.33801613,118320.0,118310.0,0.37351772]
[1754997226416,0.20257613,118320.0,118310.0,0.37351772]
[1754997226616,0.33801613,118320.0,118310.0,0.37351772]
[1754997227358,0.20055613,118320.0,118310.0,0.003]
[1754997227562,0.33277613,118320.0,118310.0,0.54256513]
[1754997227892,0.028383,118320.0,118310.0,0.98069325]
[1754997228094,0.13828,118320.0,118310.0,0.98069325]
[1754997228292,0.003,118320.0,118310.0,0.98069325]
[1754997229416,0.003,118320.0,118310.0,0.23965781]
[1754997229633,0.003,118320.0,118310.0,0.98069325]
[1754997231081,0.17203313,118320.0,118310.0,0.98069325]
[1754997231287,0.17203313,118320.0,118310.0,0.17204741]
[1754997231519,0.17203313,118320.0,118310.0,0.54256513]
[1754997231649,0.17506313,118320.0,118310.0,0.54256513]
[1754997232297,0.17708313,118320.0,118310.0,0.54256513]
[1754997233093,0.17708313,118320.0,118310.0,0.17204741]
[1754997233295,0.17708313,118320.0,118310.0,0.54256513]
[1754997233703,0.17708313,118320.0,118310.0,0.37351772]
[1754997234738,0.17708313,118320.0,118310.0,0.49702015]
[1754997235374,0.17708313,118320.0,118310.0,0.003]
[1754997235985,0.17708313,118320.0,118310.0,0.49702015]
[1754997236557,0.17708313,118320.0,118310.0,0.003]
[1754997237112,0.20246413,118320.0,118310.0,0.003]
[1754997239010,0.25313655,118320.0,118310.0,0.003]
[1754997239234,0.20246413,118320.0,118310.0,0.003]
[1754997242038,0.20246413,118320.0,118310.0,0.49702015]
[1754997242681,0.20246413,118320.0,118310.0,0.003]
[1754997243011,0.20246413,118320.0,118310.0,0.49702015]
[1754997243439,0.20246413,118320.0,118310.0,0.003]
[1754997243612,0.20246413,118320.0,118310.0,0.49702015]
[1754997244256,0.20246413,118320.0,118310.0,0.003]
[1754997245536,0.20246413,118320.0,118310.0,0.49702015]
[1754997246067,0.20246413,118320.0,118310.0,0.003]
[1754997246275,0.25313655,118320.0,118310.0,0.003]
[1754997248901,0.20246413,118320.0,118310.0,0.003]
[1754997256737,0.33642413,118320.0,118310.0,0.003]
[1754997258879,0.33642413,118320.0,118310.0,0.37355491]
[1754997259532,0.33642413,118320.0,118310.0,0.003]
[1754997259725,0.33642413,118320.0,118310.0,0.37355491]
[1754997259882,0.33642413,118320.0,118310.0,0.003]
[1754997260119,0.33642413,118320.0,118310.0,0.37355491]
[1754997260299,0.33642413,118320.0,118310.0,0.003]
[1754997260482,0.33642413,118320.0,118310.0,0.37355491]
[1754997260684,0.33642413,118320.0,118310.0,0.003]
[1754997262774,0.33642413,118320.0,118310.0,0.4970954]
[1754997263232,0.33642413,118320.0,118310.0,0.003]
[1754997263461,0.33642413,118320.0,118310.0,0.4970954]
[1754997263700,0.33642413,118320.0,118310.0,0.003]
[1754997263883,0.38696854,118320.0,118310.0,0.003]
[1754997267335,0.33642413,118320.0,118310.0,0.003]
[1754997267463,0.33642413,118320.0,118310.0,0.4970954]
[1754997267943,0.33614413,118320.0,118310.0,0.4970954]
[1754997270692,0.33614413,118320.0,118310.0,0.003]
[1754997271099,0.33614413,118320.0,118310.0,0.4970954]
[1754997271307,0.37767114,118320.0,118310.0,0.4970954]
[1754997272063,0.33614413,118320.0,118310.0,0.4970954]
[1754997272675,0.20246413,118320.0,118310.0,0.4970954]
[1754997272952,0.20044413,118320.0,118310.0,0.4970954]
[1754997273170,0.33432413,118320.0,118310.0,0.4970954]
[1754997274078,0.33432413,118320.0,118310.0,0.003]
[1754997274309,0.33432413,118320.0,118310.0,0.4970954]
[1754997274539,0.38465855,118320.0,118310.0,0.003]
[1754997274751,0.38465855,118320.0,118310.0,0.4970954]
[1754997274951,0.33642413,118320.0,118310.0,0.003]
[1754997275171,0.33642413,118320.0,118310.0,0.4970954]
[1754997277009,0.20254413,118320.0,118310.0,0.4970954]
[1754997277217,0.33630413,118320.0,118310.0,0.4970954]
[1754997277420,0.33630413,118320.0,118310.0,0.003]
[1754997277632,0.33630413,118320.0,118310.0,0.4970954]
[1754997280694,0.33630413,118320.0,118310.0,0.37354737]
[1754997288301,0.33630413,118320.0,118310.0,0.003]
[1754997288770,0.33630413,118320.0,118310.0,0.37354737]
[1754997291668,0.33630413,118320.0,118310.0,0.003]
[1754997291895,0.33382678,118320.0,118310.0,0.003]
[1754997292131,0.33382678,118320.0,118310.0,0.37354737]
[1754997292726,0.33382678,118320.0,118310.0,0.003]
[1754997292950,0.33382678,118320.0,118310.0,0.37354737]
[1754997297043,0.33172678,118320.0,118310.0,0.37354737]
[1754997297245,0.32793678,118320.0,118310.0,0.91314215]
[1754997297448,0.15890365,118320.0,118310.0,0.98075255]
[1754997297651,0.02590365,118320.0,118310.0,1.48429992]
[1754997297856,0.02590365,118320.0,118310.0,1.56702317]
[1754997298055,0.00052265,118320.0,118310.0,1.56702317]
[1754997298255,0.00052265,118320.0,118310.0,1.1288654]
[1754997298835,0.33886417,118340.0,118320.0,0.1690211]
[1754997299028,0.33886417,118340.0,118330.0,0.37054737]
[1754997299234,0.16901884,118330.0,118320.0,0.53956847]
[1754997299444,0.17200884,118330.0,118320.0,0.53956847]
[1754997299657,0.17200884,118330.0,118310.0,0.18349978]
[1754997299658,0.16903313,118320.0,118310.0,0.18349978]
[1754997300030,0.30203313,118320.0,118310.0,0.55404715]
[1754997300238,0.30502313,118320.0,118310.0,0.55404715]
[1754997301115,0.30502313,118320.0,118310.0,0.54804715]
[1754997302136,0.30602313,118320.0,118310.0,0.55204715]
[1754997302480,0.30303313,118320.0,118310.0,0.92459452]
[1754997302683,0.134,118320.0,118310.0,0.92459452]
[1754997302887,0.134,118320.0,118310.0,0.92259452]
[1754997303322,0.001,118320.0,118310.0,0.92359452]
[1754997303530,0.13384,118320.0,118310.0,0.92359452]
[1754997303733,0.13384,118320.0,118310.0,1.00631777]
[1754997303942,0.001,118320.0,118310.0,1.00631777]
[1754997304161,0.13284,118330.0,118320.0,0.16903313]
[1754997304369,0.30185884,118330.0,118320.0,0.91012787]
[1754997304781,0.30185884,118330.0,118320.0,0.6628976]
[1754997305625,0.30185884,118330.0,118320.0,0.6638976]
[1754997305961,0.30285884,118330.0,118320.0,0.49686447]
[1754997306171,0.30801884,118330.0,118320.0,0.003]
[1754997307389,0.33339784,118330.0,118320.0,0.003]
[1754997307776,0.32839784,118330.0,118320.0,0.003]
[1754997310010,0.32839784,118330.0,118320.0,0.49686447]
[1754997311953,0.32839784,118330.0,118300.0,0.0176959]
[1754997311954,0.16904741,118310.0,118300.0,0.0176959]
[1754997312251,0.38663066,118310.0,118300.0,0.0176959]
[1754997312541,0.41507766,118310.0,118300.0,0.0176959]
[1754997313344,0.41516048,118310.0,118300.0,0.0176959]
[1754997314584,0.41516048,118310.0,118300.0,0.0186959]
[1754997314585,0.41716048,118310.0,118300.0,0.0186959]
[1754997314961,0.50064491,118310.0,118300.0,0.0186959]
[1754997316828,0.49941491,118310.0,118300.0,0.0186959]
[1754997317498,0.91079495,118310.0,118300.0,0.0186959]
[1754997317702,0.92824397,118310.0,118300.0,0.0186959]
[1754997319100,0.4343795,118310.0,118300.0,0.0186959]
[1754997319935,0.92824397,118310.0,118300.0,0.0186959]
[1754997320546,0.4343795,118310.0,118300.0,0.0186959]
[1754997321431,0.4343395,118310.0,118300.0,0.0187359]
[1754997321796,0.41673048,118310.0,118300.0,0.0187359]
[1754997322021,0.41673048,118310.0,118300.0,0.51260037]
[1754997322398,0.28413048,118310.0,118300.0,0.51260037]
[1754997322833,0.33007723,118310.0,118300.0,0.68166207]
[1754997325266,0.13564282,118310.0,118300.0,0.68166207]
[1754997326092,0.13364282,118310.0,118300.0,0.68066207]
[1754997326298,0.00308282,118310.0,118300.0,0.76438532]
[1754997326707,8.282e-05,118310.0,118300.0,0.78621532]
[1754997327532,0.00108282,118310.0,118300.0,0.78621532]
[1754997328277,8.282e-05,118310.0,118300.0,0.78621532]
[1754997328484,0.00108282,118310.0,118300.0,0.78721532]
[1754997328641,0.00208282,118310.0,118300.0,0.78921532]
[1754997329028,0.00308282,118310.0,118300.0,0.79321532]
[1754997330238,0.00308282,118310.0,118300.0,0.77038532]
[1754997330644,0.17519023,118310.0,118300.0,0.77038532]
[1754997330840,0.17519023,118310.0,118300.0,0.79576532]
[1754997331062,0.00308282,118310.0,118300.0,0.79576532]
[1754997332182,0.17213023,118310.0,118300.0,0.0501159]
[1754997332391,0.30653023,118310.0,118300.0,0.0247359]
[1754997332595,0.30653023,118310.0,118300.0,0.51860037]
[1754997333009,0.30653023,118310.0,118300.0,0.0247359]
[1754997333233,0.30653023,118310.0,118300.0,0.51860037]
[1754997333441,0.00308282,118310.0,118300.0,0.68766207]
[1754997333664,0.00308282,118310.0,118300.0,0.77038532]
[1754997334272,0.00308282,118310.0,118300.0,0.79576532]
[1754997335138,0.00308282,118310.0,118300.0,0.77038532]